Workbook

Sheet Лист1
E1: День: | F1: среда | L1: 2024-05-29
D2: Неделя | F2: 1 | I2: Возраст: | L2: от 7 до 11 лет
A3: № рец. | B3: Прием пищи, наименование блюда | D3: Масса порции | E3: Пищевые вещества (г) | H3: Энерге- тическая ценность (ккал) | I3: Витамины (мг) | L3: Минеральные вещества (мг)
E4: Б | F4: Ж | G4: У | I4: B1 | J4: В2 | K4: C | L4: Ca | M4: Mg | N4: Fe
A5: 1 | B5: 2 | D5: 3 | E5: 4 | F5: 5 | G5: 6 | H5: 7 | I5: 8 | J5: 9 | K5: 10 | L5: 11 | M5: 12 | N5: 13
A6: Завтрак
A7: 311 | B7: Каша овсяная молочная жидкая | D7: 180/5 | E7: 6.90 | F7: 9.10 | G7: 28.80 | H7: 231 | I7: 0.18 | J7: 0.16 | K7: 0.47 | L7: 128.65 | M7: 51.73 | N7: 1.47
A8: 693 | B8: Какао с молоком | D8: 200 | E8: 3.30 | F8: 3.10 | G8: 13.60 | H8: 95 | I8: 0.03 | J8: 0.12 | K8: 0.52 | L8: 110.37 | M8: 26.97 | N8: 0.88
A9: 3 | B9: Бутерброд с маслом и сыром | D9: 20/\5/10 | E9: 5.00 | F9: 7.10 | G9: 14.50 | H9: 146 | I9: 0.05 | J9: 0.06 | K9: 0.07 | L9: 107.50 | M9: 15.40 | N9: 0.68
B10: Вода бутилированная | D10: 200
A11: Итого за Завтрак 420 | E11: =SUM(E7:E10) -> 15.20 | F11: =SUM(F7:F10) -> 19.30 | G11: =SUM(G7:G10) -> 56.90 | H11: 472 | I11: =SUM(I7:I10) -> 0.26 | J11: 0.34 | K11: 1.06 | L11: 346.52 | M11: 94.10 | N11: 3.03
A12: Обед
A13: 16 | B13: Салат из свежих огурцов | D13: 60 | E13: 0.50 | F13: 2.70 | G13: 1.80 | H13: 35 | I13: 0.01 | J13: 0.02 | K13: 2.30 | L13: 12.29 | M13: 7.02 | N13: 0.32
A14: 131 | B14: Рассольник домашний | D14: 250 | E14: 2.50 | F14: 6.20 | G14: 14.60 | H14: 130 | I14: 0.10 | J14: 0.08 | K14: 10.51 | L14: 33.90 | M14: 27.12 | N14: 1.02
A15: 205 | B15: Котлеты рубленые из птицы | D15: 90 | E15: 13.50 | F15: 19.30 | G15: 13.90 | H15: 286 | I15: 0.06 | J15: 0.09 | K15: 0.35 | L15: 19.80 | M15: 20.43 | N15: 1.61
A16: 297 | B16: Каша перловая рассыпчатая | D16: 180/5 | E16: 5.50 | F16: 4.70 | G16: 38.00 | H16: 229 | I16: 0.06 | J16: 0.04 | K16: 0.00 | L16: 22.67 | M16: 22.78 | N16: 1.06
A17: 593(3) | B17: Соус томатный | D17: 30 | E17: 0.30 | F17: 1.40 | G17: 1.90 | H17: 22 | I17: 0.01 | J17: 0.01 | K17: 0.82 | L17: 1.76 | M17: 2.69 | N17: 0.12
A18: 46 | B18: Сок фруктовый | D18: 200 | E18: 1.00 | G18: 20.00 | H18: 92 | I18: 0.02 | K18: 4.00 | L18: 14.00 | M18: 8.00 | N18: 2.80
A19: СТО | B19: Хлеб пшеничный витаминизированный | D19: 60 | E19: 3.60 | F19: 0.60 | G19: 33.00 | H19: 152 | I19: 1.14 | J19: =SUM(J14:J18) -> 0.22 | K19: 0.06 | L19: 0.00 | M19: 0.00 | N19: 1.08
A20: Итого за обед 875 | E20: =SUM(E13:E19) -> 26.90 | F20: =SUM(F13:F19) -> 34.90 | G20: =SUM(G13:G19) -> 123.20 | H20: 946 | I20: =SUM(I13:I19) -> 1.40 | J20: 0.46 | K20: 18.04 | L20: 104.42 | M20: 88.04 | N20: 8.01
A21: Итого за день 1295 | E21: =SUM(E20+E11) -> 42.10 | F21: 54.20 | G21: =G11+G20 -> 180.10 | H21: 1418 | I21: 1.66 | J21: 0.80 | K21: 19.10 | L21: 450.94 | M21: 182.14 | N21: 11.04

Sheet Лист2

Sheet Лист3
